Cogmind - Beta 16 @@@ ROGUE MODE // 2026.01.08 @ 23:46:51 Player: Tom Fryers Result: Destroyed by G-47 Trooper with Particle Gun Performance ------------- Evolutions (0) 0 Regions Visited (2) 400 Robots Destroyed (18) 90 Value Destroyed (415) 415 Prototype IDs (0) 0 Alien Tech Used (0) 0 Bonus (0) 0 TOTAL SCORE: 905 Bonus ------- None Cogmind --------- Core Integrity 0/250 Matter 270/300 Energy 239/250 System Corruption 3% Temperature Hot (274) Movement Walking (120) Location -10/Mines Parts ------- > --- POWER (1) -------- Ion Engine > --- PROPULSION (2) --- Aluminum Leg Aluminum Leg > --- UTILITY (2) ------ Small Storage Unit Seismic Detector > --- WEAPON (2) ------- Medium Laser Medium Laser > --- INVENTORY (8) ---- Ion Engine Light Ion Engine Aluminum Leg Improved Heat Sink High-capacity Matter Pod (29) Seismic Detector Tractor Beam Assault Rifle Peak State ------------ > --- POWER ------------ Ion Engine > --- PROPULSION ------- Aluminum Leg Aluminum Leg > --- UTILITY ---------- Small Storage Unit Seismic Detector > --- WEAPON ----------- Medium Laser Medium Laser > --- INVENTORY -------- Ion Engine Light Ion Engine Aluminum Leg Improved Heat Sink High-capacity Matter Pod Seismic Detector Tractor Beam Assault Rifle [Rating: 8] Favorites ----------- Power Ion Engine Engine Ion Engine Propulsion Aluminum Leg Leg Aluminum Leg Utility Small Storage Unit Device Seismic Detector Storage Small Storage Unit Weapon Medium Laser Energy Gun Medium Laser Launcher Grenade Launcher Build | -11 -10 -10 ------- Run | Yrd Mat Min Slots Evolved . | . . . Power . | . . . Propulsion . | . . . Utility . | . . . Weapon . | . . . Parts Attached 22 | 6 14 2 Power 4 | 1 3 . Engine 4 | 1 3 . Core . | . . . Reactor . | . . . Propulsion 5 | 2 1 2 Treads . | . . . Leg 5 | 2 1 2 Wheel . | . . . Hover . | . . . Flight . | . . . Utility 4 | 1 3 . Device 2 | . 2 . Storage 2 | 1 1 . Processor . | . . . Hackware . | . . . Protection . | . . . Artifact . | . . . Weapon 9 | 2 7 . Energy Gun 8 | 2 6 . Energy Cannon . | . . . Ballistic Gun . | . . . Ballistic Cannon . | . . . Launcher 1 | . 1 . Special Weapon . | . . . Impact Weapon . | . . . Slashing Weapon . | . . . Piercing Weapon . | . . . Special Melee Weapon . | . . . Unidentified Prototypes . | . . . Parts Lost 7 | . 7 . Power 2 | . 2 . Propulsion 2 | . 2 . Utility 1 | . 1 . Weapon 2 | . 2 . Highest Loss Streak 6 | . 6 . To Critical Strikes . | . . . Average Backups 6 | 4 5 7 Power 1 | . 1 1 Propulsion . | 1 . . Utility 2 | . 1 4 Weapon 2 | 1 2 1 Tool/Special . | . . . Unused Backups 8 | 1 4 3 Power 1 | . . 1 Propulsion 4 | 1 3 . Utility 2 | . . 2 Weapon 1 | . 1 . Tool/Special . | . . . Average Slot Usage (%) 80 | . 73 93 Engine 13 | . 12 14 Leg 18 | . 16 22 Device 7 | . 3 14 Storage 14 | . 14 14 Energy Gun 26 | . 25 28 Peak Build Rating 8 | 6 7 8 Average Rating 5 | 3 5 7 On Entrance 4 | . 6 6 Avg Prop Armor Cover (%) . | . . . Naked Turns . | . . . Heaviest Build 18 | 13 18 15 Greatest Support 20 | 20 20 20 Greatest Overweight (x) 3 | 1 3 1 Average Overweight (x) . | . . . Largest Inventory Capacity 8 | 8 8 8 Average Capacity 7 | 6 8 8 Most Carried 8 | 5 8 8 Average Carried 6 | 4 5 7 Final Capacity 8 | 8 8 8 Final Carried 8 | 5 7 8 Class Distribution -------------------- 100% | Mutant Dominant Class ---------------- Mutant | -10/Materials Mutant | -10/Mines Resources | -11 -10 -10 ----------- Run | Yrd Mat Min Matter Collected 439 | 260 95 84 Remotely . | . . . Salvage Created 461 | . 377 84 Parts 33 | . 27 6 Haulers Intercepted 1 | . 1 . Recyclers Shooed . | . . . Parts Field Recycled . | . . . Retrieved Matter . | . . . Parts Self-Destructed . | . . . Prevented . | . . . Parts Restored . | . . . Kills | -11 -10 -10 ------- Run | Yrd Mat Min Combat Hostiles Destroyed 14 | . 12 2 Guns 11 | . 9 2 AOE 3 | . 3 . Classes Destroyed 5 | . 5 . Hauler 1 | . 1 . Recycler 1 | . 1 . Watcher 2 | . 2 . Swarmer 6 | . 6 . Grunt 8 | . 6 2 Best Kill Streak 6 | . 6 2 Combat Bots Only 5 | . 5 2 Max Kills in Single Turn 2 | . 2 1 Gunslinging . | . . . Exploded 1 | . 1 . Melee . | . . . Uniques/NPCs Destroyed . | . . . Combat | -11 -10 -10 -------- Run | Yrd Mat Min Hostile Shots Fired 150 | . 128 22 Missed 44 | . 38 6 Hits 106 | . 90 16 Projectile 106 | . 90 16 Critical Strikes 2 | . . 2 Damage Taken 1101 | . 878 223 Core 254 | . 215 39 Absorbed by Shields . | . . . Core Remaining (%) 100 | 100 . . Volleys Fired 60 | . 46 14 Largest 2 | . 2 2 Hottest 100 | . 100 100 Shots Fired 108 | . 81 27 Gun 104 | . 77 27 Cannon . | . . . Launcher 4 | . 4 . Special . | . . . Kinetic . | . . . Thermal 92 | . 65 27 Explosive 4 | . 4 . Electromagnetic 12 | . 12 . Robot Hit Streak 4 | . 4 4 Robot Miss Streak 5 | . 5 2 Penetration Max . | . . . Secondary Targets 1 | . 1 . Max Gunslinging Chain 1 | . 1 . Shots Hit Robots 51 | . 36 15 Core Hits 30 | . 24 6 Critical Kills . | . . . Critical Parts Destroyed . | . . . Critical Strikes 3 | . 3 . Burn 3 | . 3 . Melee Attacks . | . . . Impact . | . . . Slashing . | . . . Piercing . | . . . Sneak Attacks . | . . . Combat Hostiles . | . . . Follow-up Attacks . | . . . Damage Inflicted 1060 | . 875 185 Guns 663 | . 478 185 Cannons . | . . . Explosions 397 | . 397 . Melee . | . . . Ramming . | . . . Kinetic . | . . . Thermal 722 | . 537 185 Explosive 220 | . 220 . Electromagnetic 118 | . 118 . Impact . | . . . Slashing . | . . . Piercing . | . . . Highest Corruption 3 | . 3 3 Average Corruption 2 | . 2 3 Corruption Purged . | . . . Corruption Blocked . | . . . Effects 10 | . 4 6 Message Errors 3 | . 2 1 Matter Fused 2 | . . 2 Heat Flow Errors 2 | . 1 1 Energy Discharges 1 | . 1 . Alerts 1 | . . 1 Weapon Failures 1 | . . 1 Overload Shots . | . . . Overflow Damage 38 | . 38 . Projectiles . | . . . Explosions 38 | . 38 . Melee . | . . . Knockbacks . | . . . Impact . | . . . Kinetic . | . . . Secondary . | . . . Self-Inflicted Damage 79 | . 79 . Shots 2 | . 2 . Rammed . | . . . Targets Rammed . | . . . Kicked . | . . . Crushed . | . . . Highest Temperature 424 | . 424 360 Average Temperature 153 | . 149 162 Received Heat Transfer 351 | . 186 165 Effects 6 | . 5 1 Shutdowns 2 | . 2 . Interference 4 | . 3 1 Siege Activations . | . . . Martial Activations . | . . . Shielding Activations . | . . . Robots Disrupted . | . . . Combat Hostiles . | . . . Robots Corrupted . | . . . Combat Hostiles . | . . . Parts Fried . | . . . Impact Corruptions . | . . . Robots Melted . | . . . Combat Hostiles . | . . . Parts Melted 3 | . 3 . Heat Transferred 2052 | . 1497 555 Parts Sabotaged . | . . . Parts Stolen . | . . . Parts Stripped . | . . . Power Chain Reactions 2 | . 2 . Alert | -11 -10 -10 ------- Run | Yrd Mat Min Maximum Alert Level . | . . . Low Security (%) 100 | 100 100 100 Level 1 . | . . . Level 2 . | . . . Level 3 . | . . . Level 4 . | . . . Level 5 . | . . . High Security . | . . . Max Security . | . . . Peak Influence 163 | . 163 40 Initial 31 | . . 31 Average 51 | . 77 12 Influence Increases 424 | . 374 50 Destroy 0b10 Robot/C 280 | . 240 40 Destroy 0b10 Robot/NC 20 | . 20 . Destroy Leader 56 | . 46 10 Successful Hack 4 | . 4 . Disable Machine 45 | . 45 . Destroy Structure 19 | . 19 . Influence Decreases 424 | . 293 131 Entered New Map 50 | . . 50 Time Decay 304 | . 223 81 Lost Part 70 | . 70 . Squads Dispatched 2 | . 2 . Investigation . | . . . Extermination . | . . . Reinforcement 2 | . 2 . Assault . | . . . Garrison . | . . . Intercept . | . . . Searches Triggered . | . . . Construction Impeded . | . . . Haulers Reinforced . | . . . Active Scanning Responses . | . . . Cargo Convoy Interrupts . | . . . Stealth | -11 -10 -10 --------- Run | Yrd Mat Min Distress Signals 1 | . 1 . Communications Jammed . | . . . Distress Signals . | . . . Times Spotted 22 | . 18 4 Peak Tracking Total 5 | . 5 2 Tactical Retreats . | . . . Traps | -11 -10 -10 ------- Run | Yrd Mat Min Traps Triggered 2 | . 2 . Indirectly 1 | . 1 . Trap Hack Attempts . | . . . Triggered . | . . . Disarmed . | . . . Reprogrammed . | . . . Reused . | . . . Traps Extracted . | . . . Installed . | . . . Triggered . | . . . Machines | -11 -10 -10 ---------- Run | Yrd Mat Min Machines Disabled 3 | . 3 . Max in Single Turn 1 | . 1 . Machines Repaired . | . . . Machines Dismantled . | . . . Machines Sabotaged . | . . . Overloaded Fab Kills . | . . . Hacking | -11 -10 -10 --------- Run | Yrd Mat Min Machines Accessed 2 | . 2 . Terminals 2 | . 2 . Fabricators . | . . . Repair Stations . | . . . Recycling Units . | . . . Scanalyzers . | . . . Garrison Access . | . . . Total Hacks 5 | . 5 . Successful 1 | . 1 . Failed 4 | . 4 . Catastrophic 1 | . 1 . Database Lockouts . | . . . Manual . | . . . Terminals 5 | . 5 . Fabricators . | . . . Repair Stations . | . . . Recycling Units . | . . . Scanalyzers . | . . . Garrison Access . | . . . Terminal Hacks 1 | . 1 . Dispatch Records 1 | . 1 . Fabricator Hacks . | . . . Repair Station Hacks . | . . . Recycling Unit Hacks . | . . . Scanalyzer . | . . . Garrison Access Hacks . | . . . Unauthorized Hacks . | . . . Terminals . | . . . Fabricators . | . . . Repair Stations . | . . . Recycling Units . | . . . Scanalyzers . | . . . Garrison Access . | . . . Data Cores Recovered . | . . . Used . | . . . Hacking Detections 2 | . 2 . Full Trace Events . | . . . Feedback Events . | . . . Feedback Blocked . | . . . Robot Schematics Acquired . | . . . Robots Built . | . . . Authchips . | . . . Time . | . . . Total Robot Build Rating . | . . . Part Schematics Acquired . | . . . Parts Built . | . . . Authchips . | . . . Time . | . . . Total Part Build Rating . | . . . Part Studies Acquired . | . . . Parts Repaired . | . . . Time . | . . . Parts Recycled . | . . . Recycled Matter . | . . . Retrieved Matter . | . . . Retrieved Components . | . . . Parts Scanalyzed . | . . . Part Schematics Acquired . | . . . Parts Damaged . | . . . Bothacking | -11 -10 -10 ------------ Run | Yrd Mat Min Used RIF Installer . | . . . Robots Hacked . | . . . Non-combat . | . . . Combat . | . . . Robot Hacks Applied . | . . . Relay Couplers Released . | . . . Fabnet Peak Effective % . | . . . Robots Rewired . | . . . Allies Hacked . | . . . Hacks Repelled . | . . . Allies | -11 -10 -10 -------- Run | Yrd Mat Min Total Allies . | . . . Largest Group . | . . . Highest-Rated Group . | . . . Highest-Rated Ally . | . . . Total Orders . | . . . Ally Attacks . | . . . Total Damage . | . . . Kills . | . . . Allies Corrupted . | . . . Allies Melted . | . . . Intel | -11 -10 -10 ------- Run | Yrd Mat Min Active Infowar (turns) 415 | . 136 279 Sensors 114 | . 114 . Seismic 301 | . 22 279 Robot Analysis Total . | . . . Derelict Logs Recovered . | . . . Drone Launches . | . . . Drone Recoveries . | . . . Exploration | -11 -10 -10 ------------- Run | Yrd Mat Min Turns Passed 908 | 66 563 279 Spaces Moved 470 | 50 256 164 Core 80 | 19 61 . Treads . | . . . Legs 390 | 31 195 164 Wheels . | . . . Hover . | . . . Flight . | . . . Fastest Speed 50 | 50 120 120 Average Speed 144 | 99 154 141 Slowest Speed 200 | 120 200 190 Overloaded Moves . | . . . Propulsion Burnouts . | . . . Robots Hopped . | . . . Potential Cave-ins . | . . . Cave-ins Triggered . | . . . Exploration Rate (%) 32 | 4 51 42 Regions Visited 2 Branch Regions 1 Pre-discovered Areas . | . . . Known Exits Taken . | . . . Unknown Exits Taken 2 | 1 1 . Scrap Searched . | . . . Spaces Dug . | . . . Terrain Destroyed 15 | . 15 . Melee . | . . . Projectile . | . . . AOE 15 | . 15 . Terrain Rammed . | . . . Walls Destroyed . | . . . Machines Disabled . | . . . Actions | -11 -10 -10 --------- Run | Yrd Mat Min Total 596 | 66 344 186 Wait . | . . . Move 468 | 49 255 164 Hop . | . . . Pick Up 32 | 10 19 3 Fast Attach 3 | 2 . 1 Attach 11 | 4 7 . Detach . | . . . Swap 8 | . 7 1 Drop 14 | 1 10 3 Fire 60 | . 46 14 Melee . | . . . Ram . | . . . Kick . | . . . Crush . | . . . Escape Stasis . | . . . Rewire . | . . . Trap . | . . . Miscellaneous . | . . . Route ------- -11/Scrapyard -10/Materials (discovered 2 exits: [*Mat] / [*Min]) -10/Mines History --------- Turn | Location | Event 15 | -11/Scrapyard | Discovered new exit (range 16) 67 | -11/Scrapyard | Entered Materials 308 | -10/Materials | Build established: Mutant 308 | -10/Materials | Core integrity fell below 50% 326 | -10/Materials | Discovered new exit (range 14) 358 | -10/Materials | Core integrity fell below 20% 388 | -10/Materials | Lost 6 parts (2p2n1u1w) 517 | -10/Materials | Discovered new exit (range 14) 630 | -10/Materials | Entered Mines 909 | -10/Mines | Destroyed by G-47 Trooper with Particle Gun Last Messages --------------- G-34 Mercenary destroyed. System corrupted: Matter fused (-5). Critical hit (Burn: +37). G-47 Trooper destroyed. Acquired 50 matter. <3/:X7D FUG&CLB |IY O&UH9L5QPLDWXD Overheating: System interference. Med. Laser temporarily disabled. Acquired Ion Engine. Acquired 34 matter. Acquired Aluminum Leg. Dropped Aluminum Leg. Dropped Hcp. Matter Pod. Acquired Aluminum Leg. Dropped Hcp. Matter Pod. Acquired Imp. Heat Sink. System corrupted: Heat flow error (+229). System corrupted: Matter fused (-10). Critical hit (Burn: +37). System corrupted: Med. Laser failed to cycle. Map ----- +----------------------------------------------------+ | | | | | ?????????????????????????????????????????????????? | | #############????????????????????????????????????? | | # #????????????????????????????????????? | | # """ """ #????????????????????????????????????? | | # """ """ #????????????????????????????????????? | | # """ """ #????????????????????????????????????? | | # #????????????????????????????????????? | | # """ """ #????????????????????????????????????? | | # """ """ #????????????????????????????????????? | | # """ """ #????????????????????????????????????? | | # #????????????????????????????????????? | | # """ """ #????????????????????????????????????? | | # """ """ ####?????????????????????????????????? | | # """ """ #?????????????????????????????????? | | # #??????????????#??????????????????? | | ########### ## #????????????? #####??????????????? | | ??????##### ## #?????????????! ???????????????? | | ###???# ######??????? ????????????????? | | ##??# ###### #??????? ?????????????????? | | #### ####?###### #?????? #??????????????????? | | ##?????# #?????? #???????????????????? | | #?????# #????? #???????????????????? | | ##?????# ###### ##??????????????????? | | ## ###??????# @ #??????????????????? | | ?## ##????????# k $ ???????????? | | ??## ##?????????####### t ????????? | | ??## ##???????????????# ! ########## ?????????? | | ??# #???????????????##[r##???????????????????? | | ??# #????????????????? #????????????????????? | | ?## ##????????????????? #????????????????????? | | ## ##?????????????????? #????????????????????? | | # #???????????????????g ????????????????????? | | #??????????????????? g"????????????????????? | | #??????????????????? ""???????????????????? | | ##????##????????????? "????????????????????? | | ##????? ?????????????? ????????????????????? | | ### #?????? #?????????????? "????????????????????? | | ??# #?????? #???????? #???? "????????????????????? | | ??# #???### #????? #??? ?????????????????????? | | ??# ##### #### #?????????????????????????? | | ??# #?????????????????????????? | | ??# #?????????????????????????? | | ??# ### #### #?????????????????????????? | | ??# #?## #?????????????????????????????????????? | | ### #??### #?????????????????????????????????????? | | # ##???#[#?????????????????????????????????????? | | # ##### #?????????????????????????????????????? | | # [!#?????????????????????????????????????? | +----------------------------------------------------+ Best States ------------- Heat Dissipation 25 Energy Generation 10 Energy Capacity 250 Matter Stores 300 Matter Capacity 300 Sight Range 16 Robot Scan Range 14 Terrain Scan Density 10 Evasion (%) 55 Item Schematics ----------------- None Robot Schematics ------------------ None Fabricated ------------ Nothing Repaired ---------- Nothing Studied --------- None Alien Tech Used ----------------- None Achievements -------------- None Challenges ------------ None Game ------ Seed RagnarokProtonTreads Manual? 0 Play Time 00:16:56 Cumulative 5.1 hours Start 2026.01.08 @ 23:31:22 End 2026.01.08 @ 23:46:51 Sessions 1 Manual Loads 0 Difficulty Rogue Special Mode None Game No. 8 Rogue 8 Adventurer 0 Explorer 0 Win Type - Total 0 Types 0/0/0/0/0/0/0/0/0/0 Lore% 1 Gallery% 8 Achievement% 10 Wizard Run 0 Options --------- Layout 1 ASCII 1 Keyboard 0 Movement Mouse Keybinds 0 Fullscreen 1 Font 48/Terminus++ Map View 50x35 Zoom Use 0% Tactical HUD 0 Map Filters NONE Filters NONE Steam 1 RUN: b1635c25-a471-405a-8ab8-4b4630cdb56b